[Event "*** Titled Tuesday Blitz"]
[Site "Chess.com"]
[Date "2020.04.28"]
[Round "2"]
[White "crazy_but_lazy"]
[Black "Boudicca64"]
[Result "1-0"]
[WhiteElo "2359"]
[BlackElo "1902"]
[TimeControl "180+1"]
[EndTime "10:18:39 PDT"]
[Termination "crazy_but_lazy won on time"]

1. e4 {[%clk 0:03:00.9]} 1... c5 {[%clk 0:02:52.1]} 2. Nf3 {[%clk 0:03:00.2]}
2... e6 {[%clk 0:02:52.5]} 3. d4 {[%clk 0:02:58.9]} 3... cxd4 {[%clk 0:02:53.4]}
4. Nxd4 {[%clk 0:02:59.7]} 4... Nf6 {[%clk 0:02:54.1]} 5. Nc3 {[%clk 0:02:57.2]}
5... Nc6 {[%clk 0:02:54.6]} 6. Ndb5 {[%clk 0:02:55.9]} 6... a6 {[%clk
0:02:54.4]} 7. Nd6+ {[%clk 0:02:48.1]} 7... Bxd6 {[%clk 0:02:54.5]} 8. Qxd6
{[%clk 0:02:48.9]} 8... b5 {[%clk 0:02:55.1]} 9. Bg5 {[%clk 0:02:48]} 9... b4
{[%clk 0:02:52.8]} 10. Bxf6 {[%clk 0:02:31.7]} 10... Qxf6 {[%clk 0:02:53.7]} 11.
Na4 {[%clk 0:02:31.6]} 11... Qe5 {[%clk 0:02:15.5]} 12. O-O-O {[%clk 0:02:07.9]}
12... Qxd6 {[%clk 0:02:04.3]} 13. Rxd6 {[%clk 0:02:07.6]} 13... Ke7 {[%clk
0:02:05]} 14. Rd2 {[%clk 0:01:56.2]} 14... d6 {[%clk 0:02:04.1]} 15. g3 {[%clk
0:01:41.7]} 15... Bb7 {[%clk 0:01:35.8]} 16. Bg2 {[%clk 0:01:40.1]} 16... Ne5
{[%clk 0:01:05]} 17. Rhd1 {[%clk 0:01:21.2]} 17... Rhd8 {[%clk 0:01:00.3]} 18.
b3 {[%clk 0:01:10.3]} 18... a5 {[%clk 0:00:55.3]} 19. f4 {[%clk 0:01:08.7]}
19... Ng4 {[%clk 0:00:48]} 20. h3 {[%clk 0:00:51.3]} 20... Ne3 {[%clk
0:00:44.2]} 21. Re1 {[%clk 0:00:50.7]} 21... Nxg2 {[%clk 0:00:41.4]} 22. Rxg2
{[%clk 0:00:51.6]} 22... f5 {[%clk 0:00:34.5]} 23. c4 {[%clk 0:00:20.2]} 23...
Bxe4 {[%clk 0:00:31.5]} 24. Rd2 {[%clk 0:00:20.5]} 24... Rab8 {[%clk 0:00:27.6]}
25. Re3 {[%clk 0:00:18.2]} 25... Rdc8 {[%clk 0:00:20.2]} 26. Kd1 {[%clk
0:00:15]} 26... Rd8 {[%clk 0:00:18.3]} 27. Ke1 {[%clk 0:00:14.9]} 27... g6
{[%clk 0:00:17.8]} 28. Kf2 {[%clk 0:00:14.7]} 28... Rbc8 {[%clk 0:00:14.6]} 29.
g4 {[%clk 0:00:14.2]} 29... d5 {[%clk 0:00:14.3]} 30. cxd5 {[%clk 0:00:06.1]}
30... exd5 {[%clk 0:00:14.2]} 31. Nb6 {[%clk 0:00:05.8]} 31... Rc5 {[%clk
0:00:13.4]} 32. Re1 {[%clk 0:00:04.5]} 32... Kf6 {[%clk 0:00:12.2]} 33. g5+
{[%clk 0:00:04.1]} 33... Kf7 {[%clk 0:00:11.7]} 34. h4 {[%clk 0:00:04.6]} 34...
Rd6 {[%clk 0:00:11.8]} 35. Nc4 {[%clk 0:00:04.1]} 35... Rdc6 {[%clk 0:00:04.8]}
36. Ne5+ {[%clk 0:00:04.3]} 36... Ke6 {[%clk 0:00:05.4]} 37. Nxc6 {[%clk
0:00:05.2]} 37... Rxc6 {[%clk 0:00:06]} 38. Ke3 {[%clk 0:00:05.7]} 38... Rc3+
{[%clk 0:00:05.8]} 39. Kd4 {[%clk 0:00:06.2]} 39... Rf3 {[%clk 0:00:04.7]} 40.
Rc1 {[%clk 0:00:06.1]} 40... Rxf4 {[%clk 0:00:03.5]} 41. Rc6+ {[%clk 0:00:06.3]}
41... Kd7 {[%clk 0:00:03.9]} 42. Kc5 {[%clk 0:00:06.9]} 42... d4 {[%clk
0:00:02.8]} 43. Rxd4+ {[%clk 0:00:06]} 43... Ke7 {[%clk 0:00:02.2]} 44. Rc7+
{[%clk 0:00:06.2]} 44... Ke8 {[%clk 0:00:02.7]} 45. Ra7 {[%clk 0:00:04.6]} 45...
Bb1 {[%clk 0:00:01.4]} 46. Rxf4 {[%clk 0:00:04.2]} 1-0

[Event "*** Titled Tuesday Blitz"]
[Site "Chess.com"]
[Date "2020.04.28"]
[Round "2"]
[White "Szparu"]
[Black "troisi"]
[Result "0-1"]
[WhiteElo "2496"]
[BlackElo "2159"]
[TimeControl "180+1"]
[EndTime "10:18:40 PDT"]
[Termination "troisi won on time"]

1. e4 {[%clk 0:03:00.9]} 1... e5 {[%clk 0:02:59.7]} 2. Nf3 {[%clk 0:03:00.6]}
2... Nc6 {[%clk 0:02:59.4]} 3. Bb5 {[%clk 0:03:00]} 3... a6 {[%clk 0:02:58.9]}
4. Ba4 {[%clk 0:02:59]} 4... Nf6 {[%clk 0:02:58.8]} 5. O-O {[%clk 0:02:57.8]}
5... b5 {[%clk 0:02:58.9]} 6. Bb3 {[%clk 0:02:57.5]} 6... Bc5 {[%clk 0:02:59.5]}
7. Re1 {[%clk 0:02:43.4]} 7... Ng4 {[%clk 0:02:58.1]} 8. d4 {[%clk 0:02:40.9]}
8... exd4 {[%clk 0:02:07.4]} 9. Ng5 {[%clk 0:02:37.8]} 9... Nh6 {[%clk
0:01:50.9]} 10. Nxf7 {[%clk 0:02:17.7]} 10... Nxf7 {[%clk 0:01:51.8]} 11. Bxf7+
{[%clk 0:02:15.1]} 11... Kxf7 {[%clk 0:01:49.7]} 12. Qh5+ {[%clk 0:02:14.8]}
12... g6 {[%clk 0:01:45.1]} 13. Qxc5 {[%clk 0:02:14.5]} 13... Qe7 {[%clk
0:01:43.5]} 14. Qd5+ {[%clk 0:02:03.2]} 14... Qe6 {[%clk 0:01:24.5]} 15. Bg5
{[%clk 0:01:57.9]} 15... Re8 {[%clk 0:01:14]} 16. Nd2 {[%clk 0:01:54]} 16... Bb7
{[%clk 0:01:13.1]} 17. Nf3 {[%clk 0:01:38.1]} 17... d6 {[%clk 0:01:11]} 18. Rad1
{[%clk 0:01:15.6]} 18... Qxd5 {[%clk 0:00:53.3]} 19. exd5 {[%clk 0:01:15.5]}
19... Nb4 {[%clk 0:00:51.4]} 20. Nxd4 {[%clk 0:01:01.7]} 20... Nxd5 {[%clk
0:00:43.7]} 21. c3 {[%clk 0:00:51.7]} 21... Nf6 {[%clk 0:00:43]} 22. f3 {[%clk
0:00:44.4]} 22... Re5 {[%clk 0:00:37.4]} 23. Rxe5 {[%clk 0:00:42.9]} 23... dxe5
{[%clk 0:00:38.3]} 24. Nb3 {[%clk 0:00:42.4]} 24... Nd5 {[%clk 0:00:25]} 25. Nc5
{[%clk 0:00:42.3]} 25... Bc6 {[%clk 0:00:25]} 26. Kf2 {[%clk 0:00:35.3]} 26...
a5 {[%clk 0:00:23.4]} 27. Nd3 {[%clk 0:00:27.6]} 27... Re8 {[%clk 0:00:17.7]}
28. Re1 {[%clk 0:00:27.4]} 28... Kg7 {[%clk 0:00:15.7]} 29. Nxe5 {[%clk
0:00:22.3]} 29... Bb7 {[%clk 0:00:15.7]} 30. Nd3 {[%clk 0:00:14.1]} 30... Rxe1
{[%clk 0:00:16.6]} 31. Kxe1 {[%clk 0:00:11.3]} 31... b4 {[%clk 0:00:17.2]} 32.
cxb4 {[%clk 0:00:10.2]} 32... axb4 {[%clk 0:00:18.1]} 33. Bd2 {[%clk 0:00:09.5]}
33... b3 {[%clk 0:00:14.9]} 34. axb3 {[%clk 0:00:09.2]} 34... Ba6 {[%clk
0:00:13.4]} 35. Ke2 {[%clk 0:00:05.9]} 35... Kf7 {[%clk 0:00:12.1]} 36. b4
{[%clk 0:00:03.3]} 36... Bb5 {[%clk 0:00:13]} 37. b3 {[%clk 0:00:02.8]} 37...
Ke6 {[%clk 0:00:13.5]} 38. g4 {[%clk 0:00:02.6]} 38... h5 {[%clk 0:00:13.1]} 39.
gxh5 {[%clk 0:00:02.5]} 39... gxh5 {[%clk 0:00:14]} 40. h4 {[%clk 0:00:02.6]}
40... Kf5 {[%clk 0:00:14.5]} 41. Bc1 {[%clk 0:00:01.4]} 41... Nxb4 {[%clk
0:00:14.8]} 42. Ke3 {[%clk 0:00:01]} 42... Nxd3 {[%clk 0:00:15.7]} 43. Bd2
{[%clk 0:00:01]} 43... Nc5 {[%clk 0:00:15.9]} 44. Ba5 {[%clk 0:00:01.3]} 44...
c6 {[%clk 0:00:15.5]} 45. b4 {[%clk 0:00:01.6]} 45... Ne6 {[%clk 0:00:15.6]} 46.
Bb6 {[%clk 0:00:01.5]} 46... Bc4 {[%clk 0:00:15.8]} 47. Bc5 {[%clk 0:00:01.3]}
47... Bd5 {[%clk 0:00:16.7]} 0-1

[Event "*** Titled Tuesday Blitz"]
[Site "Chess.com"]
[Date "2020.04.28"]
[Round "2"]
[White "mortngabriel"]
[Black "donotreadit"]
[Result "1-0"]
[WhiteElo "2457"]
[BlackElo "2665"]
[TimeControl "180+1"]
[EndTime "10:18:41 PDT"]
[Termination "mortngabriel won by resignation"]

1. d4 {[%clk 0:03:00.9]} 1... d5 {[%clk 0:02:58.4]} 2. c4 {[%clk 0:02:59.9]}
2... e6 {[%clk 0:02:52.2]} 3. Nf3 {[%clk 0:02:58.2]} 3... Be7 {[%clk 0:02:52.4]}
4. Nc3 {[%clk 0:02:57.9]} 4... Nf6 {[%clk 0:02:52.9]} 5. Bf4 {[%clk 0:02:58.5]}
5... O-O {[%clk 0:02:52.7]} 6. e3 {[%clk 0:02:59.1]} 6... Nbd7 {[%clk
0:02:53.3]} 7. c5 {[%clk 0:02:59.2]} 7... c6 {[%clk 0:02:53.6]} 8. h3 {[%clk
0:02:59.9]} 8... b6 {[%clk 0:02:54.2]} 9. b4 {[%clk 0:02:59.8]} 9... a5 {[%clk
0:02:54.8]} 10. a3 {[%clk 0:03:00.4]} 10... Ba6 {[%clk 0:02:55.5]} 11. Bxa6
{[%clk 0:02:54.1]} 11... Rxa6 {[%clk 0:02:54.9]} 12. O-O {[%clk 0:02:51.7]}
12... Qc8 {[%clk 0:02:53.9]} 13. Qd3 {[%clk 0:02:26.3]} 13... b5 {[%clk
0:02:37.4]} 14. Ne5 {[%clk 0:02:05.7]} 14... Qb7 {[%clk 0:02:36.9]} 15. Rab1
{[%clk 0:01:35.5]} 15... Rfa8 {[%clk 0:02:31.8]} 16. a4 {[%clk 0:01:29.5]} 16...
Nxe5 {[%clk 0:02:19.6]} 17. dxe5 {[%clk 0:01:25.4]} 17... Nd7 {[%clk 0:02:16.9]}
18. axb5 {[%clk 0:01:25.2]} 18... cxb5 {[%clk 0:02:17.8]} 19. Qxb5 {[%clk
0:01:11.8]} 19... Qxb5 {[%clk 0:02:16.6]} 20. Nxb5 {[%clk 0:01:12.7]} 20... axb4
{[%clk 0:02:17]} 21. Nc7 {[%clk 0:01:12.1]} 21... Bxc5 {[%clk 0:02:17.5]} 22.
Rfd1 {[%clk 0:00:43.5]} 22... h6 {[%clk 0:02:13.6]} 23. e4 {[%clk 0:00:41]}
23... d4 {[%clk 0:02:04.9]} 24. Bd2 {[%clk 0:00:33.8]} 24... Nxe5 {[%clk
0:01:48]} 25. Nxa8 {[%clk 0:00:33.3]} 25... Rxa8 {[%clk 0:01:48]} 26. Bxb4
{[%clk 0:00:33.4]} 26... Bxb4 {[%clk 0:01:20.3]} 27. Rxb4 {[%clk 0:00:34.3]}
27... d3 {[%clk 0:01:21.2]} 28. f4 {[%clk 0:00:32.9]} 28... Ng6 {[%clk
0:01:21.9]} 29. g3 {[%clk 0:00:31]} 29... h5 {[%clk 0:01:22.3]} 30. h4 {[%clk
0:00:31.4]} 30... Ra3 {[%clk 0:01:18.3]} 31. Rd2 {[%clk 0:00:31.2]} 31... e5
{[%clk 0:01:15.2]} 32. f5 {[%clk 0:00:24.4]} 32... Ne7 {[%clk 0:01:15.6]} 33.
Rc4 {[%clk 0:00:23.8]} 33... Kf8 {[%clk 0:01:04.6]} 34. Kf2 {[%clk 0:00:22.6]}
34... Ke8 {[%clk 0:01:03.2]} 35. Ke3 {[%clk 0:00:22.4]} 35... g6 {[%clk
0:01:00.8]} 36. fxg6 {[%clk 0:00:18.1]} 36... fxg6 {[%clk 0:01:01.7]} 37. Rxd3
{[%clk 0:00:18.7]} 37... Ra6 {[%clk 0:01:02.4]} 38. Rc5 {[%clk 0:00:18.5]} 38...
Nc6 {[%clk 0:01:00.1]} 39. Rd6 {[%clk 0:00:17.5]} 39... Ra3+ {[%clk 0:01:00.2]}
40. Rd3 {[%clk 0:00:17.5]} 40... Ra6 {[%clk 0:00:59.4]} 41. Rd6 {[%clk
0:00:17.5]} 41... Ra3+ {[%clk 0:00:59]} 42. Kf2 {[%clk 0:00:17.8]} 42... Ra2+
{[%clk 0:00:58.3]} 43. Kg1 {[%clk 0:00:17.3]} 43... Nb4 {[%clk 0:00:48.2]} 44.
Rxe5+ {[%clk 0:00:14.4]} 44... Kf8 {[%clk 0:00:48.3]} 45. Rxg6 {[%clk
0:00:13.4]} 45... Nd3 {[%clk 0:00:48.6]} 46. Rf6+ {[%clk 0:00:13.1]} 46... Kg7
{[%clk 0:00:48.7]} 47. Ref5 {[%clk 0:00:10.5]} 47... Ra1+ {[%clk 0:00:47.8]} 48.
Kg2 {[%clk 0:00:10.4]} 48... Ra2+ {[%clk 0:00:48.1]} 49. Kh3 {[%clk 0:00:10.9]}
49... Ne1 {[%clk 0:00:43.1]} 50. e5 {[%clk 0:00:09.5]} 50... Re2 {[%clk
0:00:36.6]} 51. Rg5+ {[%clk 0:00:09.7]} 51... Kh7 {[%clk 0:00:35.6]} 52. Rxh5+
{[%clk 0:00:10.6]} 52... Kg7 {[%clk 0:00:35.1]} 53. Rg5+ {[%clk 0:00:11.5]}
53... Kh7 {[%clk 0:00:35.7]} 54. e6 {[%clk 0:00:12]} 54... Nd3 {[%clk
0:00:35.7]} 55. Rf7+ {[%clk 0:00:11.6]} 55... Kh6 {[%clk 0:00:35.4]} 56. e7
{[%clk 0:00:10.8]} 56... Nf4+ {[%clk 0:00:24.3]} 57. Rxf4 {[%clk 0:00:10.3]}
57... Rxe7 {[%clk 0:00:22.1]} 58. Rf6+ {[%clk 0:00:10.8]} 58... Kh7 {[%clk
0:00:22.7]} 59. Kg4 {[%clk 0:00:10.9]} 1-0

[Event "*** Titled Tuesday Blitz"]
[Site "Chess.com"]
[Date "2020.04.28"]
[Round "2"]
[White "A-Fier"]
[Black "Generalas"]
[Result "1-0"]
[WhiteElo "2796"]
[BlackElo "2336"]
[TimeControl "180+1"]
[EndTime "10:18:42 PDT"]
[Termination "A-Fier won by resignation"]

1. e4 {[%clk 0:03:00.9]} 1... e5 {[%clk 0:03:00]} 2. Nf3 {[%clk 0:03:00.8]} 2...
Nc6 {[%clk 0:03:00.2]} 3. Bb5 {[%clk 0:03:01.3]} 3... a6 {[%clk 0:03:00.4]} 4.
Ba4 {[%clk 0:03:00.9]} 4... Nf6 {[%clk 0:03:00.1]} 5. O-O {[%clk 0:03:01.5]}
5... Be7 {[%clk 0:03:00.2]} 6. Re1 {[%clk 0:03:02]} 6... b5 {[%clk 0:03:00.2]}
7. Bb3 {[%clk 0:03:02.5]} 7... O-O {[%clk 0:03:00.9]} 8. a4 {[%clk 0:03:02.2]}
8... Bb7 {[%clk 0:03:00.4]} 9. d3 {[%clk 0:03:01.9]} 9... d6 {[%clk 0:03:00.8]}
10. Nc3 {[%clk 0:03:01.3]} 10... Na5 {[%clk 0:03:00.2]} 11. Ba2 {[%clk
0:03:00.4]} 11... b4 {[%clk 0:02:59.8]} 12. Ne2 {[%clk 0:03:01]} 12... Rb8
{[%clk 0:03:00]} 13. Ng3 {[%clk 0:02:59.9]} 13... b3 {[%clk 0:02:54.3]} 14. Bxb3
{[%clk 0:02:50.2]} 14... Nxb3 {[%clk 0:02:53.6]} 15. cxb3 {[%clk 0:02:51.1]}
15... Bc8 {[%clk 0:02:51]} 16. Nd2 {[%clk 0:02:49]} 16... Be6 {[%clk 0:02:50]}
17. Nc4 {[%clk 0:02:49.1]} 17... Qd7 {[%clk 0:02:46.5]} 18. Bg5 {[%clk
0:02:48.5]} 18... h6 {[%clk 0:02:28.4]} 19. Bxf6 {[%clk 0:02:47.6]} 19... Bxf6
{[%clk 0:02:29.3]} 20. Rc1 {[%clk 0:02:47.2]} 20... Bg5 {[%clk 0:02:06.4]} 21.
Rc3 {[%clk 0:02:45.2]} 21... f5 {[%clk 0:01:24.1]} 22. exf5 {[%clk 0:02:39.4]}
22... Bxf5 {[%clk 0:01:25]} 23. Nxf5 {[%clk 0:02:36.9]} 23... Qxf5 {[%clk
0:01:25]} 24. Qe2 {[%clk 0:02:37]} 24... Bh4 {[%clk 0:01:18.8]} 25. g3 {[%clk
0:02:35.1]} 25... Bg5 {[%clk 0:01:18.7]} 26. Ne3 {[%clk 0:02:26.2]} 26... Qf7
{[%clk 0:01:16]} 27. Qc2 {[%clk 0:02:18.3]} 27... Rb7 {[%clk 0:01:04.9]} 28. Nc4
{[%clk 0:01:58.3]} 28... Bf6 {[%clk 0:00:56.1]} 29. Na5 {[%clk 0:01:56.7]} 29...
Ra7 {[%clk 0:00:47.7]} 30. Nc6 {[%clk 0:01:55.8]} 30... Rb7 {[%clk 0:00:47.7]}
31. b4 {[%clk 0:01:55.5]} 31... e4 {[%clk 0:00:41.5]} 32. d4 {[%clk 0:01:50]}
32... d5 {[%clk 0:00:28.7]} 33. Rc5 {[%clk 0:01:44.3]} 33... Rb6 {[%clk
0:00:26.6]} 34. Re2 {[%clk 0:01:03]} 34... Qe6 {[%clk 0:00:17.9]} 35. b5 {[%clk
0:01:00.3]} 35... axb5 {[%clk 0:00:17.1]} 36. axb5 {[%clk 0:01:01.2]} 36... Ra8
{[%clk 0:00:16.4]} 37. Re1 {[%clk 0:01:01]} 37... Rf8 {[%clk 0:00:16]} 38. Qb3
{[%clk 0:00:59.6]} 38... Kh7 {[%clk 0:00:14.7]} 39. Qxd5 {[%clk 0:00:58]} 39...
Qxd5 {[%clk 0:00:10.8]} 40. Rxd5 {[%clk 0:00:58.9]} 40... Ra8 {[%clk 0:00:09.1]}
41. Rxe4 {[%clk 0:00:59.2]} 41... Ra1+ {[%clk 0:00:08.9]} 42. Kg2 {[%clk
0:00:59.4]} 42... Rb1 {[%clk 0:00:09.2]} 43. Re2 {[%clk 0:00:59.7]} 43... Rd1
{[%clk 0:00:08.8]} 44. Rd7 {[%clk 0:00:58.7]} 44... Rxb5 {[%clk 0:00:07.2]} 45.
Rxc7 {[%clk 0:00:56.7]} 45... Rd5 {[%clk 0:00:07.3]} 46. b4 {[%clk 0:00:53.5]}
46... Bxd4 {[%clk 0:00:04.3]} 47. Nxd4 {[%clk 0:00:53.2]} 47... R1xd4 {[%clk
0:00:05]} 48. Rb2 {[%clk 0:00:53.2]} 48... Rb5 {[%clk 0:00:04.6]} 49. Re2 {[%clk
0:00:51.6]} 49... Rbxb4 {[%clk 0:00:04.6]} 50. Ree7 {[%clk 0:00:52.1]} 50... Rg4
{[%clk 0:00:04.8]} 51. f4 {[%clk 0:00:50.3]} 51... Rbxf4 {[%clk 0:00:03.7]} 52.
Rxg7+ {[%clk 0:00:48.1]} 52... Rxg7 {[%clk 0:00:03.9]} 53. Rxg7+ {[%clk
0:00:49]} 53... Kxg7 {[%clk 0:00:04.5]} 54. gxf4 {[%clk 0:00:49.8]} 54... Kf6
{[%clk 0:00:05]} 55. Kf3 {[%clk 0:00:36.8]} 55... Kf5 {[%clk 0:00:05.1]} 56. Kg3
{[%clk 0:00:37.2]} 56... h5 {[%clk 0:00:04.7]} 57. Kf3 {[%clk 0:00:37.3]} 57...
h4 {[%clk 0:00:04.3]} 58. h3 {[%clk 0:00:37.5]} 58... Kf6 {[%clk 0:00:01.7]} 59.
Kg4 {[%clk 0:00:37.2]} 59... Kg6 {[%clk 0:00:01.9]} 60. Kxh4 {[%clk 0:00:37.6]}
1-0

[Event "*** Titled Tuesday Blitz"]
[Site "Chess.com"]
[Date "2020.04.28"]
[Round "2"]
[White "annamaja"]
[Black "jguerramzllo"]
[Result "0-1"]
[WhiteElo "2225"]
[BlackElo "2629"]
[TimeControl "180+1"]
[EndTime "10:18:43 PDT"]
[Termination "jguerramzllo won by resignation"]

1. e4 {[%clk 0:03:00.9]} 1... e5 {[%clk 0:02:58.7]} 2. Nf3 {[%clk 0:02:59.3]}
2... Nc6 {[%clk 0:02:57.6]} 3. Bb5 {[%clk 0:02:59.1]} 3... Nf6 {[%clk
0:02:54.8]} 4. d3 {[%clk 0:02:59.5]} 4... Bc5 {[%clk 0:02:52.5]} 5. O-O {[%clk
0:02:59.4]} 5... d6 {[%clk 0:02:49.7]} 6. c3 {[%clk 0:02:59.7]} 6... O-O {[%clk
0:02:48.1]} 7. Be3 {[%clk 0:02:54.1]} 7... Bb6 {[%clk 0:02:34.8]} 8. Nbd2 {[%clk
0:02:48.9]} 8... Ne7 {[%clk 0:02:32.7]} 9. Bxb6 {[%clk 0:02:34.1]} 9... axb6
{[%clk 0:02:31.5]} 10. d4 {[%clk 0:02:33.9]} 10... Ng6 {[%clk 0:02:30.1]} 11.
Re1 {[%clk 0:02:26.2]} 11... Bd7 {[%clk 0:02:15.2]} 12. Bxd7 {[%clk 0:02:15.7]}
12... Qxd7 {[%clk 0:02:14.4]} 13. Nc4 {[%clk 0:02:02.3]} 13... Qe6 {[%clk
0:02:00.4]} 14. d5 {[%clk 0:01:48.3]} 14... Qd7 {[%clk 0:02:00.2]} 15. Qc2
{[%clk 0:01:36.8]} 15... h6 {[%clk 0:01:50.4]} 16. Ne3 {[%clk 0:01:33.3]} 16...
Ne7 {[%clk 0:01:43.6]} 17. Nh4 {[%clk 0:01:30]} 17... Qa4 {[%clk 0:01:38.4]} 18.
Qxa4 {[%clk 0:01:13.3]} 18... Rxa4 {[%clk 0:01:37.4]} 19. f3 {[%clk 0:01:11.7]}
19... Rfa8 {[%clk 0:01:34.9]} 20. a3 {[%clk 0:01:09.8]} 20... g6 {[%clk
0:01:33.8]} 21. g3 {[%clk 0:01:01.6]} 21... b5 {[%clk 0:01:31.9]} 22. Nc2 {[%clk
0:00:55.2]} 22... Nd7 {[%clk 0:01:27.9]} 23. Ng2 {[%clk 0:00:46.7]} 23... Nb6
{[%clk 0:01:24.9]} 24. Nge3 {[%clk 0:00:46.5]} 24... R4a7 {[%clk 0:01:19.4]} 25.
f4 {[%clk 0:00:39]} 25... Na4 {[%clk 0:01:17.5]} 26. fxe5 {[%clk 0:00:35.4]}
26... dxe5 {[%clk 0:01:16.4]} 27. Rab1 {[%clk 0:00:31.8]} 27... h5 {[%clk
0:01:15]} 28. Rf1 {[%clk 0:00:20.4]} 28... Re8 {[%clk 0:01:13.4]} 29. h3 {[%clk
0:00:17.9]} 29... Nc8 {[%clk 0:01:12.6]} 30. g4 {[%clk 0:00:17.9]} 30... Nd6
{[%clk 0:00:56.3]} 31. gxh5 {[%clk 0:00:13.2]} 31... gxh5 {[%clk 0:00:55.1]} 32.
Kh2 {[%clk 0:00:05.6]} 32... Nxe4 {[%clk 0:00:50.7]} 33. Rg1+ {[%clk 0:00:05.3]}
33... Kf8 {[%clk 0:00:44.9]} 34. Nf5 {[%clk 0:00:06]} 34... Rd8 {[%clk
0:00:37.4]} 35. Rg2 {[%clk 0:00:06]} 35... Ra6 {[%clk 0:00:33.1]} 36. Nce3
{[%clk 0:00:04]} 36... Rg6 {[%clk 0:00:28.7]} 37. Rbg1 {[%clk 0:00:03.9]} 37...
Rxg2+ {[%clk 0:00:27.3]} 38. Rxg2 {[%clk 0:00:04.8]} 38... Nb6 {[%clk
0:00:25.6]} 39. Rc2 {[%clk 0:00:03.3]} 39... Nxd5 {[%clk 0:00:24.8]} 40. Nxd5
{[%clk 0:00:03.2]} 40... Rxd5 {[%clk 0:00:25.5]} 41. Ne3 {[%clk 0:00:03.4]}
41... Rd2+ {[%clk 0:00:24.7]} 42. Rxd2 {[%clk 0:00:03.7]} 42... Nxd2 {[%clk
0:00:25.6]} 43. Kg3 {[%clk 0:00:04.1]} 43... Nc4 {[%clk 0:00:25.7]} 44. Nd1
{[%clk 0:00:02.8]} 44... Kg7 {[%clk 0:00:22.7]} 45. Kh4 {[%clk 0:00:03]} 45...
Kg6 {[%clk 0:00:22.6]} 46. Kg3 {[%clk 0:00:02.6]} 46... f5 {[%clk 0:00:21.5]}
47. Kf3 {[%clk 0:00:02.5]} 47... Kg5 {[%clk 0:00:18.5]} 48. Kg3 {[%clk
0:00:02.9]} 48... h4+ {[%clk 0:00:18]} 49. Kf3 {[%clk 0:00:03.6]} 49... e4+
{[%clk 0:00:18.4]} 50. Kf2 {[%clk 0:00:03]} 50... f4 {[%clk 0:00:18.2]} 51. Ke2
{[%clk 0:00:03.4]} 51... f3+ {[%clk 0:00:17.7]} 52. Kf2 {[%clk 0:00:04]} 52...
Kf4 {[%clk 0:00:18]} 53. b3 {[%clk 0:00:03.9]} 53... e3+ {[%clk 0:00:17.3]} 54.
Ke1 {[%clk 0:00:03.1]} 54... Nxa3 {[%clk 0:00:16.4]} 0-1

[Event "*** Titled Tuesday Blitz"]
[Site "Chess.com"]
[Date "2020.04.28"]
[Round "2"]
[White "jmduque"]
[Black "momojunkai"]
[Result "0-1"]
[WhiteElo "2428"]
[BlackElo "2310"]
[TimeControl "180+1"]
[EndTime "10:18:43 PDT"]
[Termination "momojunkai won by resignation"]

1. e4 {[%clk 0:03:00.9]} 1... c5 {[%clk 0:02:56]} 2. Nf3 {[%clk 0:03:00.9]} 2...
e6 {[%clk 0:02:56.3]} 3. d4 {[%clk 0:03:01.8]} 3... cxd4 {[%clk 0:02:57]} 4.
Nxd4 {[%clk 0:03:02.7]} 4... a6 {[%clk 0:02:57.1]} 5. c4 {[%clk 0:03:03]} 5...
Qc7 {[%clk 0:02:57.4]} 6. Nc3 {[%clk 0:03:02.9]} 6... Nf6 {[%clk 0:02:56.4]} 7.
Be2 {[%clk 0:03:02.9]} 7... Be7 {[%clk 0:02:56.4]} 8. O-O {[%clk 0:03:02.3]}
8... d6 {[%clk 0:02:56.5]} 9. Be3 {[%clk 0:03:02.3]} 9... O-O {[%clk 0:02:56.4]}
10. Qd2 {[%clk 0:02:59.8]} 10... b6 {[%clk 0:02:56.4]} 11. f3 {[%clk 0:02:55.9]}
11... Bb7 {[%clk 0:02:56.7]} 12. b4 {[%clk 0:02:54.2]} 12... Nbd7 {[%clk
0:02:56.5]} 13. Rfc1 {[%clk 0:02:51.7]} 13... Rac8 {[%clk 0:02:57]} 14. a4
{[%clk 0:02:50]} 14... Rfe8 {[%clk 0:02:55.8]} 15. Nb3 {[%clk 0:02:47.8]} 15...
Qb8 {[%clk 0:02:55.2]} 16. a5 {[%clk 0:02:48]} 16... d5 {[%clk 0:02:50.8]} 17.
Na4 {[%clk 0:02:19.6]} 17... dxe4 {[%clk 0:02:44.9]} 18. axb6 {[%clk 0:02:19.2]}
18... exf3 {[%clk 0:02:43.6]} 19. Bxf3 {[%clk 0:02:17.3]} 19... Bxf3 {[%clk
0:02:36]} 20. gxf3 {[%clk 0:02:17.2]} 20... Ne5 {[%clk 0:02:36.6]} 21. Qg2
{[%clk 0:02:12.4]} 21... Bxb4 {[%clk 0:02:32.7]} 22. c5 {[%clk 0:02:12.4]} 22...
Nd5 {[%clk 0:02:17.6]} 23. Bd4 {[%clk 0:02:07.1]} 23... Nf4 {[%clk 0:02:01.3]}
24. Qf1 {[%clk 0:02:07.4]} 24... Neg6 {[%clk 0:01:34.5]} 25. c6 {[%clk
0:02:04.8]} 25... Nd5 {[%clk 0:01:16.5]} 26. c7 {[%clk 0:02:00]} 26... Nxc7
{[%clk 0:01:04]} 27. bxc7 {[%clk 0:01:58.3]} 27... Rxc7 {[%clk 0:01:04]} 28.
Rxc7 {[%clk 0:01:55.7]} 28... Qxc7 {[%clk 0:01:04.9]} 29. Nac5 {[%clk
0:01:54.2]} 29... a5 {[%clk 0:00:56.9]} 30. Ne4 {[%clk 0:01:52.9]} 30... Qc2
{[%clk 0:00:48]} 31. Nbc5 {[%clk 0:01:44.3]} 31... f5 {[%clk 0:00:40.8]} 32. Rc1
{[%clk 0:01:42.2]} 32... Qa2 {[%clk 0:00:34]} 33. Qf2 {[%clk 0:01:37.5]} 33...
Qd5 {[%clk 0:00:33.7]} 34. Ng5 {[%clk 0:01:27.8]} 34... Nf4 {[%clk 0:00:33.6]}
35. Be3 {[%clk 0:01:20.7]} 35... Bxc5 {[%clk 0:00:30]} 36. Rxc5 {[%clk
0:01:17.2]} 36... Qd1+ {[%clk 0:00:24.9]} 37. Qf1 {[%clk 0:01:17.5]} 37... Qxf1+
{[%clk 0:00:11.8]} 38. Kxf1 {[%clk 0:01:18.4]} 38... Nd5 {[%clk 0:00:12.3]} 39.
Bd4 {[%clk 0:01:13]} 39... a4 {[%clk 0:00:12.5]} 40. Ra5 {[%clk 0:01:12.5]}
40... h6 {[%clk 0:00:09.8]} 41. Nxe6 {[%clk 0:01:09.6]} 41... Rxe6 {[%clk
0:00:10.7]} 42. Rxd5 {[%clk 0:01:09.3]} 42... Ra6 {[%clk 0:00:10.9]} 43. Ba1
{[%clk 0:01:00.5]} 43... f4 {[%clk 0:00:10.2]} 44. Ke2 {[%clk 0:00:56]} 44... a3
{[%clk 0:00:08.8]} 45. Kd3 {[%clk 0:00:55.2]} 45... a2 {[%clk 0:00:09.2]} 46.
Kc2 {[%clk 0:00:54.3]} 46... Ra3 {[%clk 0:00:09.4]} 47. Rd3 {[%clk 0:00:53]}
47... Rxd3 {[%clk 0:00:08.3]} 48. Kxd3 {[%clk 0:00:52.9]} 48... Kf7 {[%clk
0:00:09.2]} 49. Ke4 {[%clk 0:00:51.2]} 49... g5 {[%clk 0:00:08.9]} 50. Kf5
{[%clk 0:00:51.2]} 50... Ke7 {[%clk 0:00:08.7]} 51. Kg6 {[%clk 0:00:50.7]} 51...
Ke6 {[%clk 0:00:09.3]} 52. Kxh6 {[%clk 0:00:51]} 52... Kf5 {[%clk 0:00:09.4]}
53. Kh5 {[%clk 0:00:51.3]} 53... g4 {[%clk 0:00:10.2]} 54. Kh4 {[%clk
0:00:46.5]} 54... gxf3 {[%clk 0:00:10]} 55. Kh3 {[%clk 0:00:46.9]} 55... Kg5
{[%clk 0:00:10.4]} 56. Bb2 {[%clk 0:00:46]} 56... Kf5 {[%clk 0:00:10.5]} 57. Bd4
{[%clk 0:00:45.1]} 57... Kg5 {[%clk 0:00:10.7]} 58. Bb2 {[%clk 0:00:43.2]} 58...
Kf5 {[%clk 0:00:10.8]} 59. Ba1 {[%clk 0:00:42.7]} 59... Ke4 {[%clk 0:00:11.3]}
60. Bb2 {[%clk 0:00:40]} 60... Ke3 {[%clk 0:00:11.3]} 61. Ba1 {[%clk 0:00:39.7]}
61... Ke2 {[%clk 0:00:11]} 62. Kg4 {[%clk 0:00:39.4]} 62... f2 {[%clk
0:00:11.4]} 63. h4 {[%clk 0:00:39.4]} 63... f1=Q {[%clk 0:00:11.6]} 0-1